[Event "Live Chess"]
[Site "Chess.com"]
[Date "2024.06.01"]
[Round "-"]
[White "NeilDruggan73"]
[Black "Dhaydon19"]
[Result "0-1"]
[WhiteElo "1755"]
[BlackElo "2682"]
[TimeControl "300"]
[EndTime "12:53:03 PDT"]
[Termination "Dhaydon19 won by resignation"]

1. d4 {[%clk 0:04:57.2]} 1... d5 {[%clk 0:04:59.2]} 2. Bg5 {[%clk 0:04:54.6]}
2... Nf6 {[%clk 0:04:57.4]} 3. Bxf6 {[%clk 0:04:53.2]} 3... exf6 {[%clk
0:04:56.6]} 4. e3 {[%clk 0:04:52.2]} 4... c6 {[%clk 0:04:56.3]} 5. g3 {[%clk
0:04:49.8]} 5... g6 {[%clk 0:04:55.9]} 6. Bg2 {[%clk 0:04:48.7]} 6... Bg7 {[%clk
0:04:55.6]} 7. Ne2 {[%clk 0:04:47.9]} 7... f5 {[%clk 0:04:54.5]} 8. O-O {[%clk
0:04:46.7]} 8... Nd7 {[%clk 0:04:54.2]} 9. b3 {[%clk 0:04:44.7]} 9... Nf6 {[%clk
0:04:53.8]} 10. c4 {[%clk 0:04:43.6]} 10... dxc4 {[%clk 0:04:51.7]} 11. bxc4
{[%clk 0:04:42.1]} 11... O-O {[%clk 0:04:51.6]} 12. Nbc3 {[%clk 0:04:40.4]}
12... Qe7 {[%clk 0:04:50.6]} 13. Rb1 {[%clk 0:04:29.1]} 13... Rd8 {[%clk
0:04:50]} 14. Re1 {[%clk 0:04:17.1]} 14... Be6 {[%clk 0:04:48.3]} 15. Qb3 {[%clk
0:04:12.5]} 15... Rab8 {[%clk 0:04:41.8]} 16. Rbd1 {[%clk 0:03:55.6]} 16... b5
{[%clk 0:04:39.1]} 17. Bxc6 {[%clk 0:03:36.1]} 17... Bxc4 {[%clk 0:04:35.3]} 18.
Qb2 {[%clk 0:03:28.8]} 18... Qd6 {[%clk 0:04:28]} 19. Bg2 {[%clk 0:03:26.6]}
19... h5 {[%clk 0:04:18.5]} 20. h4 {[%clk 0:03:08.4]} 20... b4 {[%clk
0:04:12.4]} 21. Nb1 {[%clk 0:03:00]} 21... Nd5 {[%clk 0:04:07.6]} 22. Nd2 {[%clk
0:02:55]} 22... Bxe2 {[%clk 0:04:03.2]} 23. Rxe2 {[%clk 0:02:37.9]} 23... Nc3
{[%clk 0:04:00.3]} 24. Nc4 {[%clk 0:02:16]} 24... Nxd1 {[%clk 0:03:57.2]} 25.
Nxd6 {[%clk 0:02:11]} 25... Nxb2 {[%clk 0:03:51.5]} 26. Nxf7 {[%clk 0:02:01.5]}
26... Kxf7 {[%clk 0:03:49.4]} 27. Rxb2 {[%clk 0:01:59.4]} 27... a5 {[%clk
0:03:48.6]} 28. f4 {[%clk 0:01:49]} 28... Rxd4 {[%clk 0:03:45.3]} 29. Kf2 {[%clk
0:01:44.7]} 29... Rxf4+ {[%clk 0:03:43.2]} 30. gxf4 {[%clk 0:01:41.7]} 30...
Bxb2 {[%clk 0:03:42.8]} 0-1

[Event "Live Chess"]
[Site "Chess.com"]
[Date "2024.06.01"]
[Round "-"]
[White "matt1979"]
[Black "JanMur7"]
[Result "0-1"]
[WhiteElo "1401"]
[BlackElo "2313"]
[TimeControl "300"]
[EndTime "12:53:05 PDT"]
[Termination "JanMur7 won by resignation"]

1. f4 {[%clk 0:04:56.9]} 1... e5 {[%clk 0:04:58.5]} 2. fxe5 {[%clk 0:04:54.3]}
2... d6 {[%clk 0:04:57.5]} 3. Nf3 {[%clk 0:04:53.2]} 3... dxe5 {[%clk 0:04:56]}
4. e4 {[%clk 0:04:50.2]} 4... Nc6 {[%clk 0:04:53.4]} 5. Bb5 {[%clk 0:04:48.2]}
5... Qd6 {[%clk 0:04:46.3]} 6. Nc3 {[%clk 0:04:32.7]} 6... a6 {[%clk 0:04:38.8]}
7. Bxc6+ {[%clk 0:04:26.8]} 7... bxc6 {[%clk 0:04:38]} 8. O-O {[%clk 0:04:22.3]}
8... Nf6 {[%clk 0:04:35.8]} 9. d3 {[%clk 0:04:18.2]} 9... Be7 {[%clk 0:04:28.4]}
10. Kh1 {[%clk 0:04:10.3]} 10... O-O {[%clk 0:04:22.7]} 11. Qe1 {[%clk
0:04:08.2]} 11... Nh5 {[%clk 0:03:52.9]} 12. Qe2 {[%clk 0:03:46.8]} 12... Bg4
{[%clk 0:03:48.2]} 13. h3 {[%clk 0:03:43.6]} 13... Ng3+ {[%clk 0:03:46.6]} 0-1

[Event "Live Chess"]
[Site "Chess.com"]
[Date "2024.06.01"]
[Round "-"]
[White "Brooms1989"]
[Black "febray_27"]
[Result "0-1"]
[WhiteElo "1085"]
[BlackElo "2007"]
[TimeControl "300"]
[EndTime "12:53:10 PDT"]
[Termination "febray_27 won on time"]

1. e4 {[%clk 0:04:56.8]} 1... c5 {[%clk 0:04:57.2]} 2. Be2 {[%clk 0:04:55.3]}
2... e6 {[%clk 0:04:56]} 3. d3 {[%clk 0:04:54.8]} 3... d5 {[%clk 0:04:55.5]} 4.
f4 {[%clk 0:04:53.2]} 4... Nf6 {[%clk 0:04:51.9]} 5. e5 {[%clk 0:04:51.1]} 5...
Nfd7 {[%clk 0:04:50.8]} 6. Nf3 {[%clk 0:04:48.2]} 6... Nc6 {[%clk 0:04:50.3]} 7.
O-O {[%clk 0:04:46.2]} 7... g6 {[%clk 0:04:49.8]} 8. Qe1 {[%clk 0:04:42.9]} 8...
Bg7 {[%clk 0:04:48.4]} 9. Be3 {[%clk 0:04:37.1]} 9... O-O {[%clk 0:04:46.1]} 10.
c3 {[%clk 0:04:27.2]} 10... b6 {[%clk 0:04:43.3]} 11. Qg3 {[%clk 0:04:21.4]}
11... f6 {[%clk 0:04:41]} 12. d4 {[%clk 0:04:09.3]} 12... cxd4 {[%clk
0:04:38.3]} 13. cxd4 {[%clk 0:04:08.5]} 13... fxe5 {[%clk 0:04:35.6]} 14. fxe5
{[%clk 0:04:06]} 14... Bb7 {[%clk 0:04:30.9]} 15. Qh3 {[%clk 0:03:57.4]} 15...
Qe8 {[%clk 0:04:19.4]} 16. Bh6 {[%clk 0:03:49.3]} 16... Nb4 {[%clk 0:03:58.5]}
17. Bxg7 {[%clk 0:03:42.1]} 17... Kxg7 {[%clk 0:03:57.4]} 18. Ng5 {[%clk
0:03:38.5]} 18... Rxf1+ {[%clk 0:03:52.6]} 19. Bxf1 {[%clk 0:03:31.5]} 19... Nf8
{[%clk 0:03:44.1]} 20. Nc3 {[%clk 0:03:12.6]} 20... a6 {[%clk 0:03:34.2]} 21.
Be2 {[%clk 0:02:57.8]} 21... Qe7 {[%clk 0:03:32.3]} 22. Nf3 {[%clk 0:02:38.8]}
22... Nd7 {[%clk 0:03:19.8]} 23. Rf1 {[%clk 0:02:26.3]} 23... Rf8 {[%clk
0:03:16.6]} 24. Qh4 {[%clk 0:02:17.9]} 24... Qxh4 {[%clk 0:03:12.2]} 25. Nxh4
{[%clk 0:02:15.5]} 25... Rxf1+ {[%clk 0:03:10.4]} 26. Kxf1 {[%clk 0:02:13.8]}
26... Nc2 {[%clk 0:03:10.3]} 27. Nf3 {[%clk 0:01:57]} 27... b5 {[%clk
0:03:07.9]} 28. a3 {[%clk 0:01:45.8]} 28... Ne3+ {[%clk 0:03:05.7]} 29. Kg1
{[%clk 0:01:40.7]} 29... h6 {[%clk 0:03:04.4]} 30. Kf2 {[%clk 0:01:34.3]} 30...
Nf5 {[%clk 0:03:00.9]} 31. g4 {[%clk 0:01:31.2]} 31... Ne7 {[%clk 0:02:57.8]}
32. h4 {[%clk 0:01:26.9]} 32... Nb6 {[%clk 0:02:56]} 33. Nd2 {[%clk 0:01:20.1]}
33... Nc6 {[%clk 0:02:52.9]} 34. Ke3 {[%clk 0:01:17.2]} 34... Nc4+ {[%clk
0:02:43.5]} 35. Nxc4 {[%clk 0:01:14.8]} 35... bxc4 {[%clk 0:02:42.6]} 36. Na4
{[%clk 0:01:09.3]} 36... Bc8 {[%clk 0:02:36.6]} 37. Nc5 {[%clk 0:01:06.9]} 37...
g5 {[%clk 0:02:27.4]} 38. hxg5 {[%clk 0:01:01]} 38... hxg5 {[%clk 0:02:26.4]}
39. Bd1 {[%clk 0:00:52.1]} 39... Na7 {[%clk 0:02:16.6]} 40. Ba4 {[%clk 0:00:50]}
40... Nb5 {[%clk 0:02:15.7]} 41. Bxb5 {[%clk 0:00:49.1]} 41... axb5 {[%clk
0:02:14.8]} 42. Kd2 {[%clk 0:00:44.9]} 42... Kf7 {[%clk 0:02:04.5]} 43. Kc3
{[%clk 0:00:42.6]} 43... Ke7 {[%clk 0:02:03.7]} 44. Kb4 {[%clk 0:00:41.1]} 44...
Kd8 {[%clk 0:01:52.8]} 45. Kxb5 {[%clk 0:00:38]} 45... Kc7 {[%clk 0:01:52.7]}
46. a4 {[%clk 0:00:33.7]} 46... Kb8 {[%clk 0:01:47.6]} 47. a5 {[%clk 0:00:31.2]}
47... Kc7 {[%clk 0:01:46.7]} 48. a6 {[%clk 0:00:29.6]} 48... Kb8 {[%clk
0:01:46.3]} 49. Kb6 {[%clk 0:00:26.2]} 49... Ka8 {[%clk 0:01:45.5]} 50. Kc7
{[%clk 0:00:19.1]} 50... Bxa6 {[%clk 0:01:44.2]} 51. Nxa6 {[%clk 0:00:17.9]}
51... Ka7 {[%clk 0:01:44.1]} 52. Nc5 {[%clk 0:00:16.3]} 52... Ka8 {[%clk
0:01:43.2]} 53. Nxe6 {[%clk 0:00:15.8]} 53... Ka7 {[%clk 0:01:43.1]} 54. Nxg5
{[%clk 0:00:15]} 54... Ka8 {[%clk 0:01:43]} 55. Ne6 {[%clk 0:00:11.9]} 55... Ka7
{[%clk 0:01:42.9]} 56. g5 {[%clk 0:00:11.3]} 56... Ka6 {[%clk 0:01:42.8]} 57. g6
{[%clk 0:00:11]} 57... Kb5 {[%clk 0:01:42.6]} 58. g7 {[%clk 0:00:10.9]} 58...
Kb4 {[%clk 0:01:42.5]} 59. g8=Q {[%clk 0:00:10.2]} 59... Kb3 {[%clk 0:01:42.4]}
60. Qb8+ {[%clk 0:00:09.5]} 60... Kc2 {[%clk 0:01:41.4]} 61. Qb4 {[%clk
0:00:08]} 61... Kd3 {[%clk 0:01:40.9]} 62. Qc3+ {[%clk 0:00:06.9]} 62... Ke4
{[%clk 0:01:40.3]} 63. Ng5+ {[%clk 0:00:06.4]} 63... Kf5 {[%clk 0:01:39.5]} 64.
e6 {[%clk 0:00:06.3]} 64... Kxg5 {[%clk 0:01:38.4]} 65. e7 {[%clk 0:00:06.2]}
65... Kf6 {[%clk 0:01:38.3]} 66. e8=Q {[%clk 0:00:06.1]} 66... Kf5 {[%clk
0:01:38]} 67. Qf8+ {[%clk 0:00:05.4]} 67... Ke4 {[%clk 0:01:37.5]} 68. Qe1+
{[%clk 0:00:03.9]} 68... Kxd4 {[%clk 0:01:37.4]} 69. Qf4+ {[%clk 0:00:02.4]}
69... Kc5 {[%clk 0:01:37.3]} 70. Qef2+ {[%clk 0:00:01.5]} 70... Kb4 {[%clk
0:01:35.9]} 71. Qc1 {[%clk 0:00:01.1]} 71... Kb3 {[%clk 0:01:34.7]} 72. Qc3+
{[%clk 0:00:00.8]} 72... Ka4 {[%clk 0:01:33.5]} 0-1

[Event "Live Chess"]
[Site "Chess.com"]
[Date "2024.06.01"]
[Round "-"]
[White "Cruiseylee78"]
[Black "Kyrylo7770"]
[Result "1/2-1/2"]
[WhiteElo "1681"]
[BlackElo "1683"]
[TimeControl "300"]
[EndTime "12:53:13 PDT"]
[Termination "Game drawn by agreement"]

1. d4 {[%clk 0:04:58.1]} 1... d5 {[%clk 0:04:58.5]} 2. Bf4 {[%clk 0:04:57.6]}
2... Bg4 {[%clk 0:04:57.7]} 3. e3 {[%clk 0:04:57.3]} 3... Bxd1 {[%clk
0:04:56.9]} 4. Kxd1 {[%clk 0:04:55.1]} 4... Nf6 {[%clk 0:04:56.4]} 5. Bd3 {[%clk
0:04:52.3]} 5... Ng4 {[%clk 0:04:55]} 6. Ke2 {[%clk 0:04:47.9]} 6... e6 {[%clk
0:04:54.1]} 7. h3 {[%clk 0:04:28.8]} 7... Nf6 {[%clk 0:04:51.9]} 8. Nf3 {[%clk
0:04:17.8]} 8... Bd6 {[%clk 0:04:50.9]} 9. Bg5 {[%clk 0:04:14.3]} 9... Be7
{[%clk 0:04:49]} 10. Nc3 {[%clk 0:04:11.3]} 10... c5 {[%clk 0:04:47.2]} 11. dxc5
{[%clk 0:03:58.7]} 11... Bxc5 {[%clk 0:04:44.2]} 12. Rhd1 {[%clk 0:03:56.2]}
12... Be7 {[%clk 0:04:42.5]} 13. Kf1 {[%clk 0:03:53.1]} 13... O-O {[%clk
0:04:41.3]} 14. e4 {[%clk 0:03:49]} 14... d4 {[%clk 0:04:40]} 15. Nb5 {[%clk
0:03:44.2]} 15... a6 {[%clk 0:04:37.4]} 16. Nbxd4 {[%clk 0:03:33.6]} 16... Qb6
{[%clk 0:04:36.6]} 17. e5 {[%clk 0:03:28.1]} 17... Nd5 {[%clk 0:04:32.1]} 18. c3
{[%clk 0:03:24.9]} 18... Bxg5 {[%clk 0:04:24.2]} 19. Nxg5 {[%clk 0:03:22]} 19...
h6 {[%clk 0:04:23.9]} 20. Ne4 {[%clk 0:03:19.2]} 20... Nc6 {[%clk 0:04:18.7]}
21. Nxc6 {[%clk 0:02:50.3]} 21... bxc6 {[%clk 0:04:17.3]} 22. Rab1 {[%clk
0:02:47.1]} 22... Nf4 {[%clk 0:04:11.8]} 23. b4 {[%clk 0:02:39.3]} 23... Nxd3
{[%clk 0:04:10.6]} 24. Rxd3 {[%clk 0:02:38.6]} 24... Qb5 {[%clk 0:04:10]} 25.
Rd1 {[%clk 0:02:33.4]} 25... Qc4 {[%clk 0:04:09.4]} 26. Nd6 {[%clk 0:02:26.4]}
26... Qxa2 {[%clk 0:04:08.3]} 27. R1d2 {[%clk 0:02:22.9]} 27... Qb1+ {[%clk
0:04:06.6]} 28. Ke2 {[%clk 0:02:22.1]} 28... Qb3 {[%clk 0:04:04.8]} 29. Kf1
{[%clk 0:02:12.7]} 29... a5 {[%clk 0:04:03.9]} 30. b5 {[%clk 0:02:08.8]} 30...
cxb5 {[%clk 0:04:02.8]} 31. c4 {[%clk 0:02:06.4]} 31... Qb1+ {[%clk 0:04:01.4]}
32. Rd1 {[%clk 0:02:04]} 32... Qc2 {[%clk 0:04:00]} 33. cxb5 {[%clk 0:02:01.4]}
33... Rab8 {[%clk 0:03:53.2]} 34. Rd4 {[%clk 0:01:57.5]} 34... Qc5 {[%clk
0:03:42.6]} 35. Re4 {[%clk 0:01:54.5]} 35... Rxb5 {[%clk 0:03:37]} 36. Nxb5
{[%clk 0:01:50.6]} 36... Qxb5+ {[%clk 0:03:36.5]} 37. Kg1 {[%clk 0:01:47.5]}
37... a4 {[%clk 0:03:33.2]} 38. Ra1 {[%clk 0:01:44.6]} 38... Qb3 {[%clk
0:03:30.5]} 39. Rexa4 {[%clk 0:01:38.8]} 39... Qb2 {[%clk 0:03:25.7]} 40. f4
{[%clk 0:01:35.8]} 40... h5 {[%clk 0:03:22.3]} 41. Kh2 {[%clk 0:01:32.6]} 41...
g6 {[%clk 0:03:21.4]} 42. R1a2 {[%clk 0:01:29.5]} 42... Qc3 {[%clk 0:03:18.4]}
43. R2a3 {[%clk 0:01:26.7]} 43... Qe1 {[%clk 0:03:17.5]} 44. Ra1 {[%clk
0:01:23.6]} 44... Qe3 {[%clk 0:03:12.8]} 45. R1a3 {[%clk 0:01:20.5]} 45... Qd2
{[%clk 0:03:10]} 46. Ra2 {[%clk 0:01:17.9]} 46... Qd8 {[%clk 0:03:09.2]} 47. Rc2
{[%clk 0:01:11.6]} 47... h4 {[%clk 0:03:07.4]} 48. Rca2 {[%clk 0:01:08.1]} 48...
Qd3 {[%clk 0:03:05.2]} 49. R4a3 {[%clk 0:01:03.8]} 49... Qd1 {[%clk 0:03:03]}
50. Ra1 {[%clk 0:01:00.5]} 50... Qd2 {[%clk 0:02:58.8]} 51. Rf3 {[%clk
0:00:57.2]} 51... Rc8 {[%clk 0:02:54.2]} 52. Raf1 {[%clk 0:00:53.6]} 52... Kg7
{[%clk 0:02:50.7]} 53. R1f2 {[%clk 0:00:49.8]} 53... Qe1 {[%clk 0:02:45.1]} 54.
Rf1 {[%clk 0:00:45.8]} 54... Qe4 {[%clk 0:02:43.5]} 55. R1f2 {[%clk 0:00:38.7]}
55... Rc1 {[%clk 0:02:41.2]} 56. Rf1 {[%clk 0:00:35.6]} 56... Rc2 {[%clk
0:02:35.1]} 57. Kh1 {[%clk 0:00:32.8]} 57... Qf5 {[%clk 0:02:28.4]} 58. Kg1
{[%clk 0:00:29.6]} 1/2-1/2

[Event "Live Chess"]
[Site "Chess.com"]
[Date "2024.06.01"]
[Round "-"]
[White "IanCalvert2"]
[Black "Plato_77"]
[Result "0-1"]
[WhiteElo "1542"]
[BlackElo "1362"]
[TimeControl "300"]
[EndTime "12:53:14 PDT"]
[Termination "Plato_77 won by checkmate"]

1. b3 {[%clk 0:04:57.4]} 1... e5 {[%clk 0:04:57.5]} 2. Bb2 {[%clk 0:04:56]} 2...
Nc6 {[%clk 0:04:55.6]} 3. e3 {[%clk 0:04:50.9]} 3... Nf6 {[%clk 0:04:50.1]} 4.
Nf3 {[%clk 0:04:48.4]} 4... e4 {[%clk 0:04:47.4]} 5. Nd4 {[%clk 0:04:45.8]} 5...
d5 {[%clk 0:04:44.2]} 6. Nxc6 {[%clk 0:04:42.4]} 6... bxc6 {[%clk 0:04:42.9]} 7.
d3 {[%clk 0:04:41.5]} 7... Bd6 {[%clk 0:04:36.5]} 8. Nd2 {[%clk 0:04:32.4]} 8...
Bg4 {[%clk 0:04:34.3]} 9. Be2 {[%clk 0:04:28.5]} 9... h5 {[%clk 0:04:32.7]} 10.
h3 {[%clk 0:04:26.1]} 10... Bf5 {[%clk 0:04:30.7]} 11. dxe4 {[%clk 0:04:18.4]}
11... dxe4 {[%clk 0:04:27.5]} 12. Nc4 {[%clk 0:04:12.7]} 12... Qe7 {[%clk
0:04:22.1]} 13. Nxd6+ {[%clk 0:04:04.9]} 13... cxd6 {[%clk 0:04:21.2]} 14. Qd4
{[%clk 0:04:01.7]} 14... h4 {[%clk 0:04:10.1]} 15. Rd1 {[%clk 0:03:45.2]} 15...
Rd8 {[%clk 0:04:00.5]} 16. c4 {[%clk 0:03:19.1]} 16... O-O {[%clk 0:03:30.1]}
17. O-O {[%clk 0:03:07.8]} 17... Rfe8 {[%clk 0:03:18]} 18. Bg4 {[%clk
0:03:01.2]} 18... Bxg4 {[%clk 0:03:10.8]} 19. hxg4 {[%clk 0:02:58]} 19... Qf8
{[%clk 0:02:16.4]} 20. Rd2 {[%clk 0:02:51.8]} 20... Nxg4 {[%clk 0:02:10.9]} 21.
Rfd1 {[%clk 0:02:42.8]} 21... f5 {[%clk 0:01:41.5]} 22. Qxa7 {[%clk 0:02:22.4]}
22... Re7 {[%clk 0:01:00.5]} 23. Qd4 {[%clk 0:02:00.9]} 23... h3 {[%clk
0:00:57.7]} 24. gxh3 {[%clk 0:01:54.6]} 24... Ne5 {[%clk 0:00:56.2]} 25. Qc3
{[%clk 0:01:43.6]} 25... Qf7 {[%clk 0:00:36.6]} 26. Kf1 {[%clk 0:01:28.9]} 26...
Qh5 {[%clk 0:00:33.6]} 27. Rxd6 {[%clk 0:01:22.5]} 27... Qxh3+ {[%clk
0:00:27.4]} 28. Ke2 {[%clk 0:01:21.1]} 28... Qf3+ {[%clk 0:00:26.2]} 29. Ke1
{[%clk 0:01:13.9]} 29... Rxd6 {[%clk 0:00:19.4]} 30. Rxd6 {[%clk 0:01:11]} 30...
Nd3+ {[%clk 0:00:18.5]} 31. Rxd3 {[%clk 0:01:08.6]} 31... exd3 {[%clk
0:00:17.6]} 32. Qxd3 {[%clk 0:01:06.8]} 32... f4 {[%clk 0:00:14.6]} 33. Qd8+
{[%clk 0:01:02]} 33... Kf7 {[%clk 0:00:13]} 34. Bd4 {[%clk 0:00:56.4]} 34...
fxe3 {[%clk 0:00:12.2]} 35. Bxe3 {[%clk 0:00:54.8]} 35... Qh1+ {[%clk
0:00:10.9]} 36. Ke2 {[%clk 0:00:53.2]} 36... Qe4 {[%clk 0:00:09.5]} 37. Qd2
{[%clk 0:00:49.1]} 37... g5 {[%clk 0:00:07.2]} 38. Kf1 {[%clk 0:00:45.9]} 38...
g4 {[%clk 0:00:06.4]} 39. Bc5 {[%clk 0:00:40.6]} 39... Qh1# {[%clk 0:00:05.5]}
0-1

[Event "Live Chess"]
[Site "Chess.com"]
[Date "2024.06.01"]
[Round "-"]
[White "DarranAS"]
[Black "RichardABates"]
[Result "0-1"]
[WhiteElo "1455"]
[BlackElo "2233"]
[TimeControl "300"]
[EndTime "12:53:14 PDT"]
[Termination "RichardABates won by resignation"]

1. e4 {[%clk 0:04:51.5]} 1... c5 {[%clk 0:04:58.6]} 2. Nf3 {[%clk 0:04:47.8]}
2... d6 {[%clk 0:04:57.5]} 3. d3 {[%clk 0:04:42.7]} 3... g6 {[%clk 0:04:54.3]}
4. Be2 {[%clk 0:04:40]} 4... Bg7 {[%clk 0:04:52.8]} 5. Nc3 {[%clk 0:04:35.4]}
5... Nc6 {[%clk 0:04:51.1]} 6. Be3 {[%clk 0:04:31.7]} 6... Nf6 {[%clk
0:04:48.8]} 7. h3 {[%clk 0:04:29.6]} 7... O-O {[%clk 0:04:46.9]} 8. Qd2 {[%clk
0:04:26.2]} 8... e5 {[%clk 0:04:44.8]} 9. O-O-O {[%clk 0:04:14.6]} 9... Nd4
{[%clk 0:04:42]} 10. Bh6 {[%clk 0:04:07.7]} 10... Qa5 {[%clk 0:04:35.8]} 11.
Bxg7 {[%clk 0:03:55.1]} 11... Kxg7 {[%clk 0:04:32.7]} 12. g4 {[%clk 0:03:53]}
12... Be6 {[%clk 0:04:14.1]} 13. b3 {[%clk 0:03:46.4]} 13... b5 {[%clk
0:04:06.1]} 14. Ng5 {[%clk 0:03:22.3]} 14... Qxc3 {[%clk 0:04:00.6]} 15. Qxc3
{[%clk 0:03:18.8]} 15... Nxe2+ {[%clk 0:03:59.1]} 16. Kb2 {[%clk 0:03:18.4]}
16... Nxc3 {[%clk 0:03:57.5]} 17. Kxc3 {[%clk 0:03:18.3]} 17... b4+ {[%clk
0:03:56.5]} 18. Kb2 {[%clk 0:03:16.5]} 18... a5 {[%clk 0:03:55.2]} 19. Rhf1
{[%clk 0:02:59.8]} 19... a4 {[%clk 0:03:53.5]} 20. f4 {[%clk 0:02:56.2]} 20...
exf4 {[%clk 0:03:49]} 21. Rxf4 {[%clk 0:02:53.4]} 21... Nd7 {[%clk 0:03:47.2]}
22. Rdf1 {[%clk 0:02:46.4]} 22... Ne5 {[%clk 0:03:43.9]} 23. Nxe6+ {[%clk
0:02:18.7]} 23... fxe6 {[%clk 0:03:42.2]} 24. Rxf8 {[%clk 0:02:17.4]} 24... Rxf8
{[%clk 0:03:41]} 25. Rxf8 {[%clk 0:02:16.7]} 25... Kxf8 {[%clk 0:03:39.3]} 26.
bxa4 {[%clk 0:02:16]} 26... Nc6 {[%clk 0:03:37.9]} 27. Kb3 {[%clk 0:02:13.6]}
27... Na5+ {[%clk 0:03:36.3]} 28. Kb2 {[%clk 0:02:09.1]} 28... d5 {[%clk
0:03:34.3]} 29. exd5 {[%clk 0:02:06.2]} 29... exd5 {[%clk 0:03:32.9]} 30. c3
{[%clk 0:02:05.4]} 30... bxc3+ {[%clk 0:03:27.1]} 31. Kxc3 {[%clk 0:02:04.6]}
31... Ke7 {[%clk 0:03:25.9]} 32. d4 {[%clk 0:02:02.4]} 32... Kd6 {[%clk
0:03:24.9]} 33. h4 {[%clk 0:01:59.1]} 33... cxd4+ {[%clk 0:03:22.7]} 34. Kxd4
{[%clk 0:01:57]} 34... Nc6+ {[%clk 0:03:21.4]} 35. Kd3 {[%clk 0:01:54]} 35...
Kc5 {[%clk 0:03:19.8]} 0-1

[Event "Live Chess"]
[Site "Chess.com"]
[Date "2024.06.01"]
[Round "-"]
[White "dl_chess"]
[Black "Demyan7777"]
[Result "0-1"]
[WhiteElo "1183"]
[BlackElo "1814"]
[TimeControl "300"]
[EndTime "12:53:14 PDT"]
[Termination "Demyan7777 won by resignation"]

1. e4 {[%clk 0:04:55.9]} 1... c5 {[%clk 0:04:58.7]} 2. Nf3 {[%clk 0:04:54.1]}
2... d6 {[%clk 0:04:57.8]} 3. d4 {[%clk 0:04:53.2]} 3... cxd4 {[%clk 0:04:57.4]}
4. Nxd4 {[%clk 0:04:52.3]} 4... Nf6 {[%clk 0:04:56.4]} 5. Nc3 {[%clk 0:04:51.1]}
5... a6 {[%clk 0:04:55.9]} 6. Be3 {[%clk 0:04:43.9]} 6... e6 {[%clk 0:04:54.8]}
7. Bc4 {[%clk 0:04:35.4]} 7... Be7 {[%clk 0:04:52.3]} 8. Bb3 {[%clk 0:04:31.7]}
8... O-O {[%clk 0:04:50.6]} 9. Qd2 {[%clk 0:04:30.4]} 9... b5 {[%clk 0:04:49.2]}
10. a3 {[%clk 0:04:27.8]} 10... Qc7 {[%clk 0:04:47.5]} 11. O-O-O {[%clk
0:04:17.6]} 11... Nbd7 {[%clk 0:04:46.5]} 12. f4 {[%clk 0:04:15.2]} 12... Nc5
{[%clk 0:04:44.9]} 13. e5 {[%clk 0:03:55.1]} 13... dxe5 {[%clk 0:04:41.7]} 14.
fxe5 {[%clk 0:03:52.5]} 14... Qxe5 {[%clk 0:04:34.3]} 15. Bf4 {[%clk 0:03:26.9]}
15... Qh5 {[%clk 0:04:28.9]} 16. h3 {[%clk 0:03:12.5]} 16... Nfe4 {[%clk
0:04:26]} 17. Nxe4 {[%clk 0:03:09.3]} 17... Nxe4 {[%clk 0:04:25]} 18. Qe3 {[%clk
0:03:01.5]} 18... Bb7 {[%clk 0:04:23]} 19. Rhf1 {[%clk 0:02:56.5]} 19... e5
{[%clk 0:04:17.5]} 20. g4 {[%clk 0:02:49.5]} 20... exf4 {[%clk 0:04:12.1]} 21.
Rxf4 {[%clk 0:02:44.4]} 21... Qh6 {[%clk 0:04:11.2]} 22. Rxe4 {[%clk 0:02:16.9]}
22... Bg5 {[%clk 0:04:09]} 23. Bxf7+ {[%clk 0:01:58.2]} 23... Rxf7 {[%clk
0:04:05.8]} 24. Qxg5 {[%clk 0:01:47.9]} 24... Qxg5+ {[%clk 0:04:04.5]} 25. Kb1
{[%clk 0:01:43.9]} 25... Bxe4 {[%clk 0:04:03.1]} 0-1

[Event "Live Chess"]
[Site "Chess.com"]
[Date "2024.06.01"]
[Round "-"]
[White "ProfPoisson"]
[Black "NottheBishopSacrifice"]
[Result "0-1"]
[WhiteElo "1278"]
[BlackElo "2263"]
[TimeControl "300"]
[EndTime "12:53:15 PDT"]
[Termination "NottheBishopSacrifice won by resignation"]

1. e4 {[%clk 0:04:54.5]} 1... c6 {[%clk 0:04:57.4]} 2. d4 {[%clk 0:04:51.5]}
2... d5 {[%clk 0:04:57.3]} 3. exd5 {[%clk 0:04:49.7]} 3... cxd5 {[%clk
0:04:57.2]} 4. c4 {[%clk 0:04:47.6]} 4... Nf6 {[%clk 0:04:56.3]} 5. Nc3 {[%clk
0:04:43.2]} 5... Nc6 {[%clk 0:04:55.8]} 6. Bg5 {[%clk 0:04:35.3]} 6... dxc4
{[%clk 0:04:49.9]} 7. Bxc4 {[%clk 0:04:30.3]} 7... e6 {[%clk 0:04:47.5]} 8. Nf3
{[%clk 0:04:23.9]} 8... Be7 {[%clk 0:04:46.5]} 9. O-O {[%clk 0:04:15.6]} 9...
O-O {[%clk 0:04:45.4]} 10. h4 {[%clk 0:04:08.1]} 10... h6 {[%clk 0:04:42.6]} 11.
Bxf6 {[%clk 0:03:55.3]} 11... Bxf6 {[%clk 0:04:42.5]} 12. Ne2 {[%clk 0:03:42.1]}
12... Bxh4 {[%clk 0:04:38]} 13. Nxh4 {[%clk 0:03:34.7]} 13... Qxh4 {[%clk
0:04:35.6]} 14. Qd3 {[%clk 0:03:13]} 14... a6 {[%clk 0:04:28.4]} 15. a4 {[%clk
0:03:10.5]} 15... b6 {[%clk 0:04:26.3]} 16. Rad1 {[%clk 0:03:05.1]} 16... Bb7
{[%clk 0:04:16.7]} 17. Qg3 {[%clk 0:03:00.5]} 17... Qf6 {[%clk 0:04:13.3]} 18.
b3 {[%clk 0:02:44.5]} 18... Nb4 {[%clk 0:04:10.4]} 19. Qc7 {[%clk 0:02:33.2]}
19... Rab8 {[%clk 0:03:59]} 20. Qxb6 {[%clk 0:02:29]} 20... Bxg2 {[%clk
0:03:55.5]} 21. Qd6 {[%clk 0:02:15.6]} 21... Bxf1 {[%clk 0:03:46.4]} 22. Kxf1
{[%clk 0:02:12.8]} 22... Rfd8 {[%clk 0:03:44.5]} 23. Qg3 {[%clk 0:02:07.1]}
23... Nd5 {[%clk 0:03:43.3]} 24. Bxd5 {[%clk 0:01:58.2]} 24... exd5 {[%clk
0:03:43.2]} 25. Nc3 {[%clk 0:01:51.3]} 25... Rxb3 {[%clk 0:03:39]} 26. Rc1
{[%clk 0:01:21.9]} 26... Qxd4 {[%clk 0:03:20.1]} 27. Qc7 {[%clk 0:01:13]} 27...
Rf8 {[%clk 0:03:16.7]} 28. Qg3 {[%clk 0:01:01.7]} 28... Qc4+ {[%clk 0:03:14.1]}
29. Kg2 {[%clk 0:00:59.1]} 29... d4 {[%clk 0:03:13.7]} 30. Rg1 {[%clk
0:00:56.4]} 30... Rxc3 {[%clk 0:03:10.6]} 31. Kh1 {[%clk 0:00:55.9]} 31... Rxg3
{[%clk 0:03:09.1]} 0-1